[Event "Chinese League Div-A Rapid 2022"]
[Site "Fuling,Chongqing"]
[Date "2022.09.12"]
[Round "6.4"]
[White "Ning, Kaiyu"]
[Black "Zhou, Guijue"]
[Result "1-0"]
[ECO "A43"]
[WhiteElo "2374"]
[BlackElo "2225"]
[Annotator "TA"]
[PlyCount "127"]
[EventDate "2022.09.07"]
[EventType "team-tourn"]
[EventCountry "CHN"]
[SourceTitle "playchess.com"]
[Source "ChessBase"]
[SourceQuality "1"]
[TimeControl "1500+10"]

{[%evp 9,127,27,35,38,63,64,80,77,108,107,132,131,118,106,114,81,83,59,65,49,136,123,120,116,105,59,169,-4,-7,0,0,0,0,-30,12,-4,-16,-11,26,30,33,-8,40,32,41,14,47,0,25,45,43,-108,0,0,0,0,0,0,215,140,114,121,223,260,269,255,211,225,208,30,24,59,260,284,256,227,223,220,206,165,239,132,169,0,0,0,0,0,0,0,12845,12844,12845,0,0,0,0,0,12843,12843,12844,12844,12846,12847,12847,12847,12848,12848,12849,12846,12848,12846,12847,12847,12848,12848,12848,12849,12849,12848]} 1. d4 {[%emt 0:00:02]} c5 {[%emt 0:00:01]} 2. d5 {[%emt 0:00:05]} d6 {[%emt 0:00:02]} 3. Nc3 {[%emt 0:00:08]} g6 {[%emt 0:00:19]} 4. e4 {[%emt 0:00:09]} Bg7 {[%emt 0:00:01]} 5. Bb5+ {[%emt 0:00:22]} Bd7 {[%emt 0:00:03]} 6. a4 {[%emt 0:00:07] A43: Schmid Benoni.} a6 {[%emt 0:00:25]} 7. Bd3 {[%emt 0:01:57] [#]} b6 $146 {[%emt 0:00:14]} ({Predecessor:} 7... Nf6 8. h3 O-O 9. Nf3 Ne8 10. O-O f5 11. exf5 Bxf5 12. Ng5 Nc7 13. Re1 Nd7 {1-0 (34) Khorshidi,M (2105)-Khanaki,A (1381) Chess.com INT 2021}) 8. h3 {[%emt 0:00:09] White is better.} e5 {[%emt 0:01:14]} 9. Nf3 {[%emt 0:00:09]} Ne7 {[%emt 0:00:06]} 10. Nd2 {[%emt 0:00:22]} O-O {[%emt 0:00:15]} 11. Nc4 {[%emt 0:00:07]} Nc8 {[%emt 0:01:52]} 12. O-O {[%emt 0:00:15]} Ra7 {[%emt 0:00:02]} 13. Be3 {[%emt 0:03:16]} f5 {[%emt 0:00:34]} 14. f4 {[%emt 0:01:04]} Qe7 {[%emt 0:01:27]} (14... b5 $1 $14 15. axb5 axb5 16. Rxa7 bxc4) 15. fxe5 $16 {[%emt 0:01:55]} dxe5 {[%emt 0:00:08]} 16. d6 {[%emt 0:01:39]} Qd8 {[%emt 0:00:38]} 17. Nd5 {[%emt 0:01:13] White is much more active.} (17. a5 $16 b5 18. Nb6 (18. Bxc5 bxc4 19. Bxc4+ Kh8 $11)) 17... Bc6 {[%emt 0:01:31]} (17... f4 $14) 18. Nc3 $2 {[%emt 0:02:54]} (18. a5 Bxd5 19. axb6 (19. exd5 b5 $17) 19... Nxb6 20. exd5 e4 $15) (18. Nc7 $1 $18 {[%cal Rc7e6] Strongly threatening Ne6.} fxe4 19. Be2 (19. Ne6 Rxf1+ 20. Bxf1 Qf6 $16)) 18... f4 $11 {[%emt 0:00:47]} (18... Nxd6 $2 19. Nxd6 f4 20. Bc4+ Kh8 21. Bxc5 $1 {[%mdl 512]} bxc5 22. Nf7+ $1 {[%mdl 512]} Raxf7 23. Qxd8 Rxd8 24. Bxf7 $18) 19. Bf2 {[%emt 0:01:24]} Rd7 {[%emt 0:00:08]} (19... Nxd6 $2 20. Nxd6 Rd7 21. Nc4 $18 (21. Bc4+ Kh8 $11)) 20. Qg4 {[%emt 0:00:34]} (20. a5 b5 21. Nb6 Nxb6 22. axb6 c4 $15) 20... Kh8 {[%emt 0:03:04]} 21. Bh4 {[%emt 0:02:45]} Qe8 {[%emt 0:02:21]} 22. Be7 {[%emt 0:02:49]} Nxe7 {[%emt 0:05:03]} 23. dxe7 {[%emt 0:00:01]} Rxe7 {[%emt 0:00:02]} (23... Qxe7 $5 {[%cal Rb6b5]} 24. Nxb6 c4 25. Nxc4 (25. Nxd7 Bxd7 26. Qf3 cxd3 $19) 25... Rd4 $11) 24. Nxb6 {[%emt 0:00:10]} (24. Nd5 $2 Bxd5 25. exd5 e4 26. Bxe4 b5 27. axb5 (27. Nd6 $2 Qd8 $19) 27... axb5 $19) 24... h5 {[%emt 0:00:31]} 25. Qh4 {[%emt 0:00:26]} Re6 {[%emt 0:01:00]} (25... g5 $11 26. Qf2 (26. Qxg5 $2 Bf6 $19) 26... Re6) 26. Bc4 {[%emt 0:00:37]} Rd6 {[%emt 0:00:17]} 27. Nbd5 {[%emt 0:00:25]} Bh6 {[%emt 0:00:18]} 28. Be2 {[%emt 0:00:47]} (28. Qf2 $14) 28... Nd7 {[%emt 0:00:58]} 29. Rad1 $36 {[%emt 0:00:01][%mdl 2048] Nc7 is the strong threat. White fights for an advantage.} Nf6 {[%emt 0:00:35]} 30. Nb6 $2 {[%emt 0:01:55] [#]} (30. Nxf6 $14 {stays ahead.} Rfxf6 31. b3) 30... Rxd1 {[%emt 0:00:11]} (30... Nxe4 $6 31. Nxe4 Rxd1 32. Rxd1 $11) ({Black should try} 30... Rd4 $1 $17 31. Bd3 Qe6) 31. Rxd1 {[%emt 0:00:01]} Nxe4 {[%emt 0:00:03]} 32. Nxe4 {[%emt 0:00:21]} Bxe4 {[%emt 0:00:01] This bishop pair is nice.} 33. Nd7 {[%emt 0:00:25][%cal Bb6d7,Bd7c5,Bc5e6][%mdl 32]} g5 $2 {[%emt 0:01:59]} (33... Rf5 $11 {and Black has nothing to worry.} 34. Nxc5 Bg5) 34. Qf2 {[%emt 0:00:03] Hoping for Rd6.} Rf5 {[%emt 0:01:10][%cal Oe4g2]} 35. Nxc5 {[%emt 0:01:25]} Bxc2 {[%emt 0:00:02] [#]} (35... Ba8 $16 {was worth a try.}) 36. Bxh5 $1 $18 {[%emt 0:00:16][%mdl 512]} Qxh5 {[%emt 0:00:14]} 37. Qxc2 {[%emt 0:00:01]} g4 {[%emt 0:00:11]} 38. Rd8+ {[%emt 0:00:37]} (38. Nxa6 $2 gxh3 39. Rd8+ Bf8 $19) 38... Rf8 {[%emt 0:00:01]} 39. Rxf8+ {[%emt 0:00:11]} (39. Rd7 $18 {[%csl Gd7][%cal Rc2h7]} Qf5 40. Qxf5 Rxf5 41. hxg4) 39... Bxf8 {[%emt 0:00:02][%mdl 4096] Endgame KQB-KQN} 40. Ne6 {[%emt 0:00:01]} Be7 $2 {[%emt 0:00:46]} ({Better is} 40... gxh3 $14 41. Nxf8 f3 42. gxf3 e4 43. Qxe4 (43. Qc3+ Kg8 $16) 43... Qc5+ 44. Kh2 Qxf8 45. Kxh3 Qf7) 41. Qc8+ {[%emt 0:00:30]} Kh7 {[%emt 0:00:04]} 42. hxg4 {[%emt 0:00:09]} (42. Qxa6 gxh3 43. Qb7 h2+ 44. Kh1 Qd1+ 45. Kxh2 Qh5+ 46. Kg1 Qd1+ 47. Kf2 (47. Kh2 Qh5+ 48. Kg1 Qd1+ 49. Kh2 $11) 47... Qd6 48. Qe4+ Kh6 $11) 42... Qh4 {[%emt 0:00:09]} 43. Qc2+ {[%emt 0:00:01]} ({Not} 43. Qxa6 Qe1+ 44. Qf1 Qe3+ 45. Qf2 Qc1+ 46. Qf1 Qe3+ 47. Kh2 Qb3 48. Qb1+ Kh8 $11) (43. Qc3 $6 Bf6 $16) 43... Kh6 {[%emt 0:00:22]} 44. Qe2 {[%emt 0:00:11]} Bf6 {[%emt 0:00:07]} (44... Bd6 $142 45. g5+ (45. Qxa6 f3 $11) 45... Kg6) 45. g5+ {[%emt 0:00:12]} ({Worse is} 45. Qxa6 Qxg4 46. Nf8 Qd1+ 47. Kh2 Qh5+ 48. Kg1 Qd1+ 49. Kh2 Qh5+ 50. Kg1 Qd1+ $11) (45. a5 $18) 45... Bxg5 $16 {[%emt 0:00:06]} 46. Qxe5 $2 {[%emt 0:00:01]} (46. Nxg5 $18 Qxg5 47. Qxa6+ Kg7 48. Qb7+ Kg6 49. Qc6+ Kf5 50. Qc8+ Ke4 51. a5) 46... Bf6 $11 {[%emt 0:00:22]} 47. Qxf4+ {[%emt 0:00:21]} Qxf4 {[%emt 0:00:01]} 48. Nxf4 {[%emt 0:00:01]} Bxb2 {[%emt 0:00:01] KB-KN} 49. Kf2 {[%emt 0:00:01]} a5 $2 {[%emt 0:00:06][%mdl 8192]} (49... Kg5 $11 50. Kf3 Ba3) 50. Kf3 {[%emt 0:00:06]} Kg5 {[%emt 0:00:02]} 51. g4 $2 {[%emt 0:00:02]} (51. Ke4 $18 Kg4 52. Ne2) 51... Bc3 {[%emt 0:00:02]} 52. Nh3+ {[%emt 0:00:37]} Kh4 {[%emt 0:00:04]} 53. Nf2 {[%emt 0:00:02] aiming for Kf4.} Bd2 {[%emt 0:00:13][%mdl 8192]} (53... Bd4 $11) 54. Ne4 $18 {[%emt 0:00:15] White is clearly winning.} Bc1 {[%emt 0:00:03]} 55. Nd6 {[%emt 0:00:05]} Bd2 {[%emt 0:00:07]} 56. Nc4 {[%emt 0:00:06]} Bc3 {[%emt 0:00:22]} 57. Kf4 {[%emt 0:00:01]} Bb4 {[%emt 0:00:11]} 58. Kf5 {[%emt 0:00:03]} Bc3 {[%emt 0:00:01]} 59. Nd6 {[%emt 0:00:29]} Bd2 {[%emt 0:00:58]} 60. Ne4 {[%emt 0:00:03]} Bc1 {[%emt 0:00:01]} 61. g5 {[%emt 0:00:30][%cal Bg4g5,Bg5g6][%mdl 32]} Bb2 {[%emt 0:00:38]} 62. Nf6 {[%emt 0:00:14]} Bc1 {[%emt 0:00:04]} 63. g6 {[%emt 0:00:08]} Bh6 {[%emt 0:00:07]} 64. Ne8 {[%emt 0:00:04] Weighted Error Value: White=0.38/Black=0.32} 1-0

[Event "Chinese League Div-A Rapid 2022"]
[Site "Fuling,Chongqing"]
[Date "2022.09.12"]
[Round "6.5"]
[White "Ni, Shiqun"]
[Black "Zhao, Shengxin"]
[Result "1/2-1/2"]
[ECO "D46"]
[WhiteElo "2371"]
[BlackElo "2112"]
[Annotator "TA"]
[PlyCount "44"]
[EventDate "2022.09.07"]
[EventType "team-tourn"]
[EventCountry "CHN"]
[SourceTitle "playchess.com"]
[Source "ChessBase"]
[SourceQuality "1"]
[TimeControl "1500+10"]

{[%evp 21,31,0,0,0,11,4,11,9,10,0,47,42]} 1. d4 {[%emt 0:00:03]} d5 {[%emt 0:00:33]} 2. c4 {[%emt 0:00:03]} c6 {[%emt 0:00:12]} 3. Nf3 {[%emt 0:00:15]} Nf6 {[%emt 0:00:28]} 4. Nc3 {[%emt 0:00:03]} e6 {[%emt 0:00:13]} 5. e3 {[%emt 0:00:05]} Nbd7 {[%emt 0:00:17]} 6. Qc2 {[%emt 0:00:05]} Bd6 {[%emt 0:00:11]} 7. Bd3 {[%emt 0:00:03]} O-O {[%emt 0:00:38]} 8. O-O {[%emt 0:00:03]} dxc4 {[%emt 0:00:14]} 9. Bxc4 {[%emt 0:00:02]} b5 {[%emt 0:00:12]} 10. Bd3 {[%emt 0:00:28]} Bb7 {[%emt 0:00:25]} 11. e4 {[%emt 0:00:38]} e5 {[%emt 0:01:36]} 12. h3 {[%emt 0:01:01] D46: Semi-Slav: 5 e3 Nbd7 6 Bd3, Black avoids the Meran.} a6 {[%emt 0:04:05]} 13. dxe5 {[%emt 0:00:13]} Nxe5 {[%emt 0:00:06]} 14. Nxe5 {[%emt 0:00:06]} Bxe5 {[%emt 0:00:05]} 15. Be3 {[%emt 0:00:11]} Bd4 {[%emt 0:03:39]} (15... Re8 $11 {feels stronger.}) 16. Bxd4 {[%emt 0:08:08] [#] Black got outplayed after the opening.  Weighted Error Value: White=0.02 (flawless) /Black=0.18 (very precise)} {Predecessor:} Qxd4 $146 17. Rad1 Qc5 18. Kh1 Qh5 19. a4 Rfe8 20. Rfe1 Rac8 21. b3 g6 22. Bf1 Qe5 {1-0 (39) Simantsev,M (2398)-Vatsal,S (2371) Paracin 2021} 1/2-1/2

[Event "Chinese League Div-A Rapid 2022"]
[Site "Fuling,Chongqing"]
[Date "2022.09.12"]
[Round "6.6"]
[White "Wan, Yunguo"]
[Black "Huang, Renjie"]
[Result "1/2-1/2"]
[ECO "B33"]
[WhiteElo "2508"]
[BlackElo "2446"]
[Annotator "TA"]
[PlyCount "84"]
[EventDate "2022.09.07"]
[EventType "team-tourn"]
[EventCountry "CHN"]
[SourceTitle "playchess.com"]
[Source "ChessBase"]
[SourceQuality "1"]
[TimeControl "1500+10"]

{[%evp 22,84,36,11,11,7,13,4,11,11,22,14,8,0,8,-2,8,10,27,0,76,17,70,38,72,73,72,53,54,0,0,0,29,27,24,0,0,0,0,0,0,-97,-99,-320,-68,-70,-68,-78,-16,-16,-16,-16,-16,-16,-16,-15,0,0,0,0,0,0,0,0,0]} 1. e4 {[%emt 0:00:05]} c5 {[%emt 0:00:01]} 2. Nf3 {[%emt 0:00:04]} Nc6 {[%emt 0:00:02]} 3. d4 {[%emt 0:00:07]} cxd4 {[%emt 0:00:01]} 4. Nxd4 {[%emt 0:00:02]} Nf6 {[%emt 0:00:01]} 5. Nc3 {[%emt 0:00:05]} e6 {[%emt 0:00:03][%cal Be7e6,Be6e5][%mdl 32]} 6. Ndb5 {[%emt 0:00:59]} d6 {[%emt 0:00:07]} 7. Bf4 {[%emt 0:00:06]} e5 {[%emt 0:00:02]} 8. Bg5 {[%emt 0:00:02]} a6 {[%emt 0:00:01]} 9. Na3 {[%emt 0:00:11]} b5 {[%emt 0:00:01]} 10. Nd5 {[%emt 0:00:09]} Be7 {[%emt 0:00:02]} 11. Bxf6 {[%emt 0:00:06]} Bxf6 {[%emt 0:00:01]} 12. c4 {[%emt 0:00:06]} b4 {[%emt 0:00:01] B33: Sicilian: Pelikan and Sveshnikov Variations.} 13. Nc2 {[%emt 0:00:02]} O-O {[%emt 0:00:03]} 14. g3 {[%emt 0:00:06]} a5 {[%emt 0:00:07]} 15. Bg2 {[%emt 0:00:11]} g6 {[%emt 0:00:03]} 16. O-O {[%emt 0:01:04] 16.Qd3 is setting a new trend.} Bg7 {[%emt 0:00:01]} 17. Qd3 {[%emt 0:00:16]} Be6 {[%emt 0:00:40]} 18. Rad1 {[%emt 0:00:11]} Rb8 {[%emt 0:00:16]} 19. b3 {[%emt 0:00:04]} Qd7 {[%emt 0:00:10]} 20. f4 {[%emt 0:01:44]} f5 {[%emt 0:00:36]} (20... Nd4 $11) 21. Kh1 {[%emt 0:00:53] [#] White is more active.} (21. Nde3 $16) 21... Kh8 $146 {[%emt 0:00:11]} (21... fxe4 $11 22. Bxe4 Bh3) ({Predecessor:} 21... fxe4 22. Bxe4 Nd4 23. Nxd4 exd4 24. f5 gxf5 25. Bxf5 Be5 26. Qe4 Kh8 27. Bxe6 Qxe6 28. Kg2 Qh6 {½-½ (125) Orujov,F (1481)-Boykov,P (1636) Tornelo INT 2020}) 22. Nde3 $14 {[%emt 0:01:55] aiming for exf5. Pair of Knights!} Rbd8 {[%emt 0:01:59]} 23. exf5 {[%emt 0:00:26]} gxf5 {[%emt 0:00:05]} 24. fxe5 {[%emt 0:00:27]} Nxe5 {[%emt 0:00:02]} 25. Qe2 {[%emt 0:01:22]} (25. Qd2 $1 $14) 25... Ng6 $11 {[%emt 0:00:02]} 26. Nd5 {[%emt 0:03:46] Against f4} Bxd5 {[%emt 0:00:17]} (26... Rde8 $5 {[%cal Re6d5]} 27. Qd2 Bxd5 28. Qxd5 (28. Bxd5 f4 $11) 28... f4 $14) 27. Rxd5 {[%emt 0:01:47]} f4 {[%emt 0:00:38]} 28. Qh5 {[%emt 0:02:14]} fxg3 {[%emt 0:00:27]} 29. hxg3 {[%emt 0:00:08]} Be5 {[%emt 0:00:20]} 30. Rxf8+ {[%emt 0:01:00]} Rxf8 {[%emt 0:00:04]} 31. Rb5 {[%emt 0:00:08]} (31. Be4 $1 $11 {remains equal.} Rf1+ 32. Kg2) 31... Bxg3 $17 {[%emt 0:00:57][%cal Od6d5]} 32. Ne3 $2 {[%emt 0:03:03] [#]} (32. Rb7 $17 {is a better defense.} Rf1+ 33. Bxf1 Qxb7+ 34. Bg2) 32... Qg7 $2 {[%emt 0:00:15]} ({Black should try} 32... Qe6 $1 $19 {[%cal Re6e3]} 33. Rb7 Ne7) 33. Rb7 $15 {[%emt 0:00:54]} Ne7 {[%emt 0:01:03] Hoping for ...Bf2.} 34. Be4 {[%emt 0:00:45]} Bf2 {[%emt 0:04:46]} ({Black should play} 34... Bf4 $17 35. Qxh7+ Qxh7+ 36. Bxh7 Bg5) 35. Qxh7+ $1 $11 {[%emt 0:02:12] The position is equal.} Qxh7+ {[%emt 0:00:02]} 36. Bxh7 {[%emt 0:00:02]} Bxe3 {[%emt 0:00:24]} 37. Rxe7 {[%emt 0:00:06][%mdl 4096] Endgame KRB-KRB} Bc5 {[%emt 0:00:02] With the idea ...Rf1+.} 38. Bd3 {[%emt 0:00:18][%cal Bh7d3,Bd3e2,Be2f3,Bf3c6][%mdl 32] Inhibits Rf1+.} Rf2 {[%emt 0:00:01]} 39. Re2 {[%emt 0:00:16]} Rxe2 {[%emt 0:00:02]} 40. Bxe2 {[%emt 0:00:02]} Kg7 {[%emt 0:00:00]} 41. Bf3 {[%emt 0:00:24]} Kf6 {[%emt 0:00:02]} 42. Bc6 {[%emt 0:00:01]} Ke5 {[%emt 0:00:18] Weighted Error Value: White=0.23 (precise) /Black=0.22 (precise)} 1/2-1/2

[Event "Chinese League Div-A Rapid 2022"]
[Site "Fuling,Chongqing"]
[Date "2022.09.12"]
[Round "6.7"]
[White "Nie, Xinyang"]
[Black "Zhao, Jun"]
[Result "1/2-1/2"]
[ECO "D55"]
[WhiteElo "2388"]
[BlackElo "2619"]
[Annotator "TA"]
[PlyCount "59"]
[EventDate "2022.09.07"]
[EventType "team-tourn"]
[EventCountry "CHN"]
[SourceTitle "playchess.com"]
[Source "ChessBase"]
[SourceQuality "1"]
[TimeControl "1500+10"]

{[%evp 20,59,13,5,12,8,17,8,16,15,13,9,8,4,2,0,6,0,10,0,0,0,2,-6,0,-4,-3,-4,0,-5,-4,-6,0,-3,0,0,0,0,0,0,0,0]} 1. d4 {[%emt 0:00:02]} d5 {[%emt 0:00:08]} 2. c4 {[%emt 0:00:02]} e6 {[%emt 0:00:07]} 3. Nc3 {[%emt 0:00:03]} Be7 {[%emt 0:01:02]} 4. Nf3 {[%emt 0:00:06]} Nf6 {[%emt 0:00:02]} 5. Bg5 {[%emt 0:00:02]} O-O {[%emt 0:00:21]} 6. e3 {[%emt 0:00:01]} h6 {[%emt 0:00:01]} 7. Bxf6 {[%emt 0:00:01]} Bxf6 {[%emt 0:00:04]} 8. Rc1 {[%emt 0:00:01]} dxc4 {[%emt 0:00:28]} 9. Bxc4 {[%emt 0:00:28]} Nd7 {[%emt 0:00:02]} 10. O-O {[%emt 0:01:42]} c5 {[%emt 0:00:04]} 11. Ne4 {[%emt 0:02:44] The position is equal.} cxd4 {[%emt 0:00:13] D55: Queen's Gambit Declined: 4 Bg5 Be7: Lines without ...h6 and 6...h6 7 Bxf6.} 12. Nxf6+ {[%emt 0:00:24]} Nxf6 {[%emt 0:00:08]} 13. Nxd4 {[%emt 0:00:44]} Qb6 {[%emt 0:01:58]} 14. Qb3 {[%emt 0:02:15]} Qxb3 {[%emt 0:01:22]} 15. Bxb3 {[%emt 0:00:19]} Bd7 {[%emt 0:00:04]} 16. Rc7 {[%emt 0:00:46]} Rab8 {[%emt 0:00:02]} 17. Rfc1 {[%emt 0:00:26][%cal Oe3e4]} Rfd8 {[%emt 0:00:06] [#]} 18. Nf3 $146 {[%emt 0:01:55]} ({Predecessor:} 18. f4 Ne8 19. R7c2 Nd6 20. Rc7 Ne8 21. R7c2 Nd6 22. Rc7 Ne8 {½-½ (22) Radjabov,T (2763)-Nakamura,H (2736) chess24.com INT 2021}) 18... Rdc8 {[%emt 0:09:11]} 19. h3 {[%emt 0:03:42]} Ne8 {[%emt 0:00:18]} 20. Rxc8 {[%emt 0:00:12]} Rxc8 {[%emt 0:00:01]} 21. Rd1 {[%emt 0:00:23]} Nf6 {[%emt 0:03:50]} 22. Ne5 {[%emt 0:00:04]} Be8 {[%emt 0:01:28]} 23. f3 {[%emt 0:02:34]} Kf8 {[%emt 0:00:05]} 24. e4 {[%emt 0:00:03]} Ke7 {[%emt 0:00:20]} 25. Kf2 {[%emt 0:00:07]} a5 {[%emt 0:01:42] Black wants to play ...a4.} 26. Rd2 {[%emt 0:00:34]} b5 {[%emt 0:00:42]} 27. a3 {[%emt 0:00:07]} Nd7 {[%emt 0:00:23]} 28. Nxd7 {[%emt 0:00:29]} Bxd7 {[%emt 0:00:01]} 29. Rc2 {[%emt 0:00:18]} Rxc2+ {[%emt 0:01:00]} 30. Bxc2 {[%emt 0:00:20] A rather calm draw.  Weighted Error Value: White=0.03 (flawless) /Black=0.02 (flawless)} 1/2-1/2

[Event "Chinese League Div-A Rapid 2022"]
[Site "Fuling,Chongqing"]
[Date "2022.09.12"]
[Round "6.8"]
[White "Zhang, Pengxiang"]
[Black "Liu, Qingnan"]
[Result "1/2-1/2"]
[ECO "C42"]
[WhiteElo "2564"]
[BlackElo "2542"]
[Annotator "TA"]
[PlyCount "141"]
[EventDate "2022.09.07"]
[EventType "team-tourn"]
[EventCountry "CHN"]
[SourceTitle "playchess.com"]
[Source "ChessBase"]
[SourceQuality "1"]
[TimeControl "1500+10"]

{[%evp 21,141,29,43,33,56,35,50,18,30,47,54,-40,-51,-67,-35,-41,-43,-41,-43,-43,-43,-38,-28,-31,-25,-25,-25,-25,-25,-25,-33,-33,-14,-14,-15,-15,-8,-8,0,0,0,0,0,0,0,0,0,-8,0,0,0,0,0,-21,0,0,0,-28,0,0,0,-35,-29,-29,-29,-74,-5,-25,-19,-6,0,0,0,0,0,0,0,0,0,0,29,24,24,37,22,0,0,-17,-18,-30,-37,-44,-72,-44,-44,-112,0,0,0,0,0,0,0,0,0,0,0,0,0,0,0,0,0,0,0,0,0,0,0,0,0,0]} 1. e4 {[%emt 0:00:03]} e5 {[%emt 0:00:01]} 2. Nf3 {[%emt 0:00:02]} Nf6 {[%emt 0:00:06]} 3. Nxe5 {[%emt 0:00:08]} d6 {[%emt 0:00:02]} 4. Nf3 {[%emt 0:00:01]} Nxe4 {[%emt 0:00:03]} 5. d4 {[%emt 0:00:02]} d5 {[%emt 0:00:03]} 6. Bd3 {[%emt 0:00:02]} Bd6 {[%emt 0:00:07]} 7. O-O {[%emt 0:00:02]} O-O {[%emt 0:00:04]} 8. c4 {[%emt 0:00:01]} c6 {[%emt 0:00:03]} 9. Qc2 {[%emt 0:00:02]} Na6 {[%emt 0:00:09]} 10. a3 {[%emt 0:00:01]} f5 {[%emt 0:00:32]} 11. Nc3 {[%emt 0:00:06]} Nc7 {[%emt 0:00:09]} 12. b4 $1 {[%emt 0:00:02][%mdl 4] is recently more successful than 12.c5. C42: Petroff Defence: 3 Nxe5 and unusual White 3rd moves.} Kh8 {[%emt 0:01:37]} 13. c5 {[%emt 0:03:49]} Be7 {[%emt 0:00:02]} 14. Ne2 {[%emt 0:00:03] White is slightly better.} Ne6 {[%emt 0:05:42]} 15. Ne5 {[%emt 0:00:12] [#]} a5 $146 {[%emt 0:01:49][%cal Ba7a5,Ba5b4,Bb4a3][%mdl 32]} ({Predecessor:} 15... Bf6 16. Bb2 Qc7 17. f3 N4g5 18. h4 Nf7 19. f4 Nh6 20. g3 Bd7 21. Kg2 Rae8 {½-½ (31) Khairullin,I (2543)-Frolyanov,D (2498) Yerevan 2006}) 16. f3 {[%emt 0:03:34] [#]} (16. Qb2 $14) 16... axb4 $1 $15 {[%emt 0:00:17][%cal Oe7f6]} 17. Be3 {[%emt 0:03:03] [#]} Rxa3 $1 {[%emt 0:01:28]} 18. Rxa3 {[%emt 0:03:18]} (18. fxe4 $2 Rxa1 19. Rxa1 fxe4 20. Bxe4 dxe4 21. Qxe4 Nc7 $17) 18... bxa3 {[%emt 0:00:07]} 19. fxe4 {[%emt 0:00:01]} fxe4 {[%emt 0:00:02]} 20. Nf7+ {[%emt 0:00:07] [#]} Rxf7 $1 {[%emt 0:00:01]} 21. Rxf7 {[%emt 0:00:01][%cal Od3e4]} exd3 {[%emt 0:00:11]} 22. Qxd3 {[%emt 0:00:03]} Bf6 {[%emt 0:00:16]} 23. Qxa3 {[%emt 0:03:04]} Kg8 {[%emt 0:00:03]} 24. Rxf6 {[%emt 0:00:23]} Qxf6 {[%emt 0:00:03]} 25. Qa8 {[%emt 0:00:15]} Qd8 {[%emt 0:01:04]} 26. Bf2 {[%emt 0:00:26]} Kf7 {[%emt 0:00:32]} 27. Bg3 {[%emt 0:00:08]} Qe8 {[%emt 0:04:07]} 28. h3 {[%emt 0:01:02]} Ng5 {[%emt 0:01:16]} 29. Be5 {[%emt 0:00:20]} Ne4 {[%emt 0:02:24]} 30. Qb8 {[%emt 0:00:41]} Qd8 {[%emt 0:01:52]} 31. Nf4 {[%emt 0:00:46][%cal Oe5g7]} Qd7 {[%emt 0:03:03]} 32. Nd3 {[%emt 0:00:51]} h6 {[%emt 0:00:17]} 33. Kh2 {[%emt 0:01:18]} Kg8 {[%emt 0:00:02]} 34. Nb2 {[%emt 0:00:20]} Nc3 {[%emt 0:00:33] Inhibits Na4.} 35. Nd3 {[%emt 0:00:35]} Kh7 {[%emt 0:00:10]} 36. Nf4 {[%emt 0:00:19]} Ne4 {[%emt 0:01:10]} 37. Nd3 {[%emt 0:00:40]} Qf5 {[%emt 0:00:19]} 38. Qc7 {[%emt 0:00:06][%csl Ge5][%cal Rc7g7]} Qd7 {[%emt 0:00:05]} 39. Qb8 {[%emt 0:00:15]} Qf5 {[%emt 0:00:00]} 40. Qc7 {[%emt 0:00:28][%csl Ge5][%cal Rc7g7]} Qd7 {[%emt 0:00:06]} 41. Qa5 {[%emt 0:00:01]} Qe7 {[%emt 0:00:16]} 42. Qa8 {[%emt 0:01:46]} Bf5 {[%emt 0:00:04]} 43. Qb8 {[%emt 0:00:05]} Ng5 {[%emt 0:00:22]} ({Black should play} 43... Nd2 $17 44. Nf4 Qf7) 44. Nf4 $11 {[%emt 0:00:13]} Nf7 {[%emt 0:00:20]} 45. Bc7 {[%emt 0:00:47]} Qf6 {[%emt 0:00:40]} 46. Qxb7 {[%emt 0:00:06]} Be4 {[%emt 0:00:12]} 47. Bb8 {[%emt 0:00:12]} Kg8 {[%emt 0:00:38]} 48. Qd7 {[%emt 0:00:08]} Bf5 {[%emt 0:00:09]} 49. Qe8+ {[%emt 0:00:43]} Kh7 {[%emt 0:00:01]} 50. Bc7 {[%emt 0:00:01]} g6 {[%emt 0:00:20][%cal Bg7g6,Bg6g5][%mdl 32]} 51. Be5 {[%emt 0:01:13]} Nxe5 {[%emt 0:00:01]} 52. dxe5 {[%emt 0:00:01][%mdl 4096] Endgame KQB-KQN} Qg7 {[%emt 0:00:00]} 53. e6 {[%emt 0:00:21]} g5 {[%emt 0:00:17]} 54. Ne2 {[%emt 0:01:35]} ({Much weaker is} 54. Qf7 Qxf7 55. exf7 Kg7 $17) 54... Qe5+ {[%emt 0:00:05]} 55. Ng3 {[%emt 0:00:07]} Qxe6 {[%emt 0:00:09]} 56. Qb8 {[%emt 0:00:12]} Bg6 {[%emt 0:00:05]} 57. Qc7+ {[%emt 0:00:01]} Kg8 {[%emt 0:00:02]} 58. Nf1 {[%emt 0:00:13] [#]} (58. Qb6 $15) 58... Bd3 {[%emt 0:00:13]} (58... Qf6 $1 $17 {[%cal Rf6f1]} 59. Nd2 Bh5) 59. Nd2 {[%emt 0:00:04] The position is equal.} Qf6 {[%emt 0:00:09]} 60. Nf3 {[%emt 0:00:18]} Be4 {[%emt 0:00:04]} 61. Qc8+ {[%emt 0:00:07]} Kg7 {[%emt 0:00:03]} 62. Qd7+ {[%emt 0:00:02]} Kg8 {[%emt 0:00:06]} 63. Qe8+ {[%emt 0:00:09]} Kg7 {[%emt 0:00:05] Hoping for ...Qf4+.} 64. Qd7+ {[%emt 0:00:01]} Kg8 {[%emt 0:00:11] Strongly threatening ...Qf4+.} 65. Qe8+ {[%emt 0:00:05]} Kg7 {[%emt 0:00:10]} 66. Qd7+ {[%emt 0:00:01]} Kf8 67. Qc8+ {[%emt 0:00:05]} Kg7 {[%emt 0:00:19] Threatens to win with ...Qf4+.} 68. Qd7+ {[%emt 0:00:11]} Kg8 {[%emt 0:00:18] White must now prevent ...Qf4+.} 69. Qe8+ {[%emt 0:00:06]} Kh7 {[%emt 0:00:16] ...Qf4+ is the strong threat.} 70. Qd7+ {[%emt 0:00:13]} Kg8 {[%emt 0:00:08] aiming for ...Qf4+.} 71. Qe8+ {[%emt 0:00:01] Weighted Error Value: White=0.10 (very precise) /Black=0.10 (very precise)} 1/2-1/2